lending/lending_fUSD_20250429
["ID","MTS","AMOUNT","RATE_DAILY","PERIOD"]
[359288724,1745894117407,470.0,0.00038356,30]
[359288725,1745894118023,571.24,0.00038356,30]
[359288726,1745894118736,1175.24,0.00038356,30]
[359288727,1745894118933,325.03357227,0.00038356,30]
[359288728,1745894120804,470.0,0.00038356,30]
[359288729,1745894121442,1565.01,0.00038356,30]
[359288730,1745894121731,470.0,0.00038356,30]
[359288731,1745894121863,470.0,0.00038356,30]
[359288732,1745894122083,470.0,0.00038356,30]
[359288733,1745894122222,470.0,0.00038356,30]
[359288734,1745894122974,470.0,0.00038356,30]
[359288735,1745894127496,470.0,0.00038356,30]
[359288736,1745894132044,594.0,0.00038356,30]
[359288737,1745894132155,470.0,0.00038356,30]
[359288738,1745894133046,470.0,0.00038356,30]
[359288739,1745894133496,582.55,0.00038356,30]
[359288740,1745894135307,470.0,0.00038356,30]
[359288741,1745894136439,470.0,0.00038356,30]
[359288742,1745894136849,470.0,0.00038356,30]
[359288743,1745894137096,470.0,0.00038356,30]
[359288744,1745894137962,470.0,0.00038356,30]
[359288745,1745894140897,612.83,0.00038356,30]
[359288746,1745894141106,470.0,0.00038356,30]
[359288747,1745894141458,470.0,0.00038356,30]
[359288748,1745894142387,470.0,0.00038356,30]
[359288749,1745894142760,886.61,0.00038356,30]
[359288750,1745894143318,470.0,0.00038356,30]
[359288751,1745894145006,470.0,0.00038356,30]
[359288752,1745894145238,470.0,0.00038356,30]
[359288753,1745894145781,470.0,0.00038356,30]
[359288754,1745894148132,151.90316368,0.00030602,60]
[359288755,1745894148362,470.0,0.00038356,30]
[359288756,1745894148760,470.0,0.00038356,30]
[359288757,1745894149114,470.0,0.00038356,30]
[359288758,1745894149756,470.0,0.00038356,30]
[359288759,1745894150673,561.41516546,0.00038356,30]
[359288760,1745894150712,677.84,0.00038356,30]
[359288761,1745894151185,470.0,0.00038356,30]
[359288762,1745894152237,470.0,0.00038356,30]
[359288763,1745894153243,470.0,0.00038356,30]
[359288764,1745894157189,470.0,0.00038356,30]
[359288765,1745894157236,726.68,0.00038356,30]
[359288766,1745894157774,470.0,0.00038356,30]
[359288767,1745894158119,470.0,0.00038356,30]
[359288768,1745894158160,151.90316368,0.00031951,60]
[359288769,1745894159799,3152.91,0.00038356,30]
[359288770,1745894162409,470.0,0.00038356,30]
[359288771,1745894162576,470.0,0.00038356,30]
[359288772,1745894162965,508.57,0.00038356,30]
[359288773,1745894163065,470.0,0.00038356,30]
[359288774,1745894163597,470.0,0.00038356,30]
[359288775,1745894164020,470.0,0.00038356,30]
[359288776,1745894164327,470.0,0.00038356,30]
[359288777,1745894165523,470.0,0.00038356,30]
[359288778,1745894166113,470.0,0.00038356,30]
[359288779,1745894166673,470.0,0.00038356,30]
[359288780,1745894168136,151.90316368,0.000333,60]
[359288781,1745894168677,807.46,0.00038356,30]
[359288782,1745894168916,470.0,0.00038356,30]
[359288783,1745894169020,470.0,0.00038356,30]
[359288784,1745894170181,470.0,0.00038356,30]
[359288785,1745894170240,470.0,0.00038356,30]
[359288786,1745894170666,470.0,0.00038356,30]
[359288787,1745894172930,470.0,0.00038356,30]
[359288788,1745894173448,470.0,0.00038356,30]
[359288789,1745894173532,470.0,0.00038356,30]
[359288790,1745894176730,543.26,0.00038356,30]
[359288791,1745894176790,720.79,0.00038356,30]
[359288792,1745894177124,470.0,0.00038356,30]
[359288793,1745894177548,470.0,0.00038356,30]
[359288794,1745894178514,471.07,0.00038356,30]
[359288795,1745894178582,470.0,0.00038356,30]
[359288796,1745894178999,270.42492813,0.00038356,30]
[359288797,1745894179602,470.0,0.00038356,30]
[359288798,1745894179813,470.0,0.00038356,30]
[359288799,1745894179917,470.0,0.00038356,30]
[359288800,1745894180581,470.0,0.00038356,30]
[359288801,1745894181292,470.0,0.00038356,30]
[359288802,1745894182912,470.0,0.00038356,30]
[359288803,1745894183115,470.0,0.00038356,30]
[359288804,1745894183637,470.0,0.00038356,30]
[359288805,1745894186623,470.0,0.00038356,30]
[359288806,1745894186760,1460.53,0.00038356,30]
[359288807,1745894187037,299.30163811,0.00038356,30]
[359288808,1745894187682,470.0,0.00038356,30]
[359288809,1745894188090,470.0,0.00038356,30]
[359288810,1745894188809,422.21970952,0.00038356,30]
[359288811,1745894190809,472.65720014,0.00038356,30]
[359288812,1745894191311,534.62,0.00038356,30]
[359288813,1745894191926,470.0,0.00038356,30]
[359288814,1745894192318,470.0,0.00038356,30]
[359288815,1745894192360,470.0,0.00038356,30]
[359288816,1745894192989,470.0,0.00038356,30]
[359288817,1745894193089,470.0,0.00038356,30]
[359288818,1745894194370,900.37,0.00038356,30]
[359288819,1745894194547,470.0,0.00038356,30]
[359288820,1745894196016,470.0,0.00038356,30]
[359288821,1745894196156,2609.63,0.00038356,30]
[359288822,1745894196326,470.0,0.00038356,30]
[359288823,1745894197117,470.0,0.00038356,30]
[359288824,1745894199523,470.0,0.00038356,30]
[359288825,1745894199712,470.0,0.00038356,30]
[359288826,1745894200497,470.0,0.00038356,30]
[359288827,1745894200562,470.0,0.00038356,30]
[359288828,1745894200598,470.0,0.00038356,30]
[359288829,1745894200664,470.0,0.00038356,30]
[359288830,1745894201597,470.0,0.00038356,30]
[359288831,1745894201667,470.0,0.00038356,30]
[359288832,1745894201709,836.29,0.00038356,30]
[359288833,1745894202674,609.0,0.00038356,30]
[359288834,1745894203762,655.94,0.00038356,30]
[359288835,1745894206359,832.39,0.00038356,30]
[359288836,1745894207003,470.0,0.00038356,30]
[359288837,1745894207065,470.0,0.00038356,30]
[359288838,1745894208871,470.0,0.00038356,30]
[359288839,1745894209892,470.0,0.00038356,30]
[359288840,1745894212315,525.1,0.00038356,30]
[359288841,1745894213186,470.0,0.00038356,30]
[359288842,1745894213892,470.0,0.00038356,30]
[359288843,1745894214758,470.0,0.00038356,30]
[359288844,1745894215120,470.0,0.00038356,30]
[359288845,1745894215447,568.27,0.00038356,30]
[359288846,1745894215523,470.0,0.00038356,30]
[359288847,1745894216299,739.95,0.00038356,30]
[359288848,1745894218227,651.6,0.00038356,30]
[359288849,1745894218269,470.0,0.00038356,30]
[359288850,1745894219992,470.0,0.00038356,30]
[359288851,1745894220034,2422.9,0.00038356,30]
[359288852,1745894220487,470.0,0.00038356,30]
[359288853,1745894221121,470.0,0.00038356,30]
[359288854,1745894221238,470.0,0.00038356,30]
[359288855,1745894222124,470.0,0.00038356,30]
[359288856,1745894222622,470.0,0.00038356,30]
[359288857,1745894226609,470.0,0.00038356,30]
[359288858,1745894227108,470.0,0.00038356,30]
[359288859,1745894228191,470.0,0.00038356,30]
[359288860,1745894229423,1016.83,0.00038356,30]
[359288861,1745894230387,470.0,0.00038356,30]
[359288862,1745894231641,470.0,0.00038356,30]
[359288863,1745894233937,470.0,0.00038356,30]
[359288864,1745894234610,733.16,0.00038356,30]
[359288865,1745894236208,470.0,0.00038356,30]
[359288866,1745894236252,1377.98,0.00038356,30]
[359288867,1745894236622,812.76,0.00038356,30]
[359288868,1745894236939,505.68321696,0.00038356,30]
[359288869,1745894237576,470.0,0.00038356,30]
[359288870,1745894238688,470.0,0.00038356,30]
[359288871,1745894238753,470.0,0.00038356,30]
[359288872,1745894238872,470.0,0.00038356,30]
[359288873,1745894239525,470.0,0.00038356,30]
[359288874,1745894240834,1764.68,0.00038356,30]
[359288875,1745894242126,470.0,0.00038356,30]
[359288876,1745894242208,470.0,0.00038356,30]
[359288877,1745894243895,842.73,0.00038356,30]
[359288878,1745894243937,470.0,0.00038356,30]
[359288879,1745894244571,470.0,0.00038356,30]
[359288880,1745894246086,470.0,0.00038356,30]
[359288881,1745894246373,470.0,0.00038356,30]
[359288882,1745894247846,470.0,0.00038356,30]
[359288883,1745894250070,470.0,0.00038356,30]
[359288884,1745894252288,657.76,0.00038356,30]
[359288885,1745894252779,470.0,0.00038356,30]
[359288886,1745894253448,470.0,0.00038356,30]
[359288887,1745894258040,470.0,0.00038356,30]
[359288888,1745894258082,470.0,0.00038356,30]
[359288889,1745894258658,474.29,0.00038356,30]
[359288890,1745894258704,470.0,0.00038356,30]
[359288891,1745894259931,470.0,0.00038356,30]
[359288892,1745894260496,523.48,0.00038356,30]
[359288893,1745894262166,470.0,0.00038356,30]
[359288894,1745894263107,470.0,0.00038356,30]
[359288895,1745894264468,470.0,0.00038356,30]
[359288896,1745894265348,470.0,0.00038356,30]
[359288897,1745894267730,470.0,0.00038356,30]
[359288898,1745894268936,470.0,0.00038356,30]
[359288899,1745894268987,470.0,0.00038356,30]
[359288900,1745894269023,470.0,0.00038356,30]
[359288901,1745894269059,470.0,0.00038356,30]
[359288902,1745894272540,470.0,0.00038356,30]
[359288903,1745894273664,470.0,0.00038356,30]
[359288904,1745894274821,692.18,0.00038356,30]
[359288905,1745894275083,470.0,0.00038356,30]
[359288906,1745894275643,470.0,0.00038356,30]
[359288907,1745894276943,470.0,0.00038356,30]
[359288908,1745894278076,470.0,0.00038356,30]
[359288909,1745894278470,592.93,0.00038356,30]
[359288910,1745894278508,723.66,0.00038356,30]
[359288911,1745894279295,470.0,0.00038356,30]
[359288912,1745894279523,470.0,0.00038356,30]
[359288913,1745894280415,575.18,0.00038356,30]
[359288914,1745894281376,489.0,0.00038356,30]
[359288915,1745894282918,470.0,0.00038356,30]
[359288916,1745894282962,946.3,0.00038356,30]
[359288917,1745894284211,470.0,0.00038356,30]
[359288918,1745894284527,470.0,0.00038356,30]
[359288919,1745894285125,470.0,0.00038356,30]
[359288920,1745894285211,470.0,0.00038356,30]
[359288921,1745894286947,1553.57,0.00038356,30]
[359288922,1745894287345,36859.81,0.00038356,30]
[359288923,1745894287384,470.0,0.00038356,30]
[359288924,1745894288060,470.0,0.00038356,30]
[359288925,1745894289538,470.0,0.00038356,30]
[359288926,1745894290272,470.0,0.00038356,30]
[359288927,1745894290799,470.0,0.00038356,30]
[359288928,1745894291779,470.0,0.00038356,30]
[359288929,1745894292056,470.0,0.00038356,30]
[359288930,1745894292521,470.0,0.00038356,30]
[359288931,1745894293834,545.56,0.00038356,30]
[359288932,1745894294180,470.0,0.00038356,30]
[359288933,1745894294738,521.41,0.00038356,30]
[359288934,1745894294944,470.0,0.00038356,30]
[359288935,1745894295902,611.01,0.00038356,30]
[359288936,1745894297915,470.0,0.00038356,30]
[359288937,1745894298342,470.0,0.00038356,30]
[359288938,1745894298962,556.88927681,0.00038356,30]
[359288939,1745894301275,489.39,0.00038356,30]
[359288940,1745894301705,470.0,0.00038356,30]
[359288941,1745894301907,491.60066436,0.00038356,30]
[359288942,1745894303053,470.0,0.00038356,30]
[359288943,1745894305251,470.0,0.00038356,30]
[359288944,1745894305403,470.0,0.00038356,30]
[359288945,1745894306655,3634.36,0.00038356,30]
[359288946,1745894307600,470.0,0.00038356,30]
[359288947,1745894309619,540.96,0.00038356,30]
[359288948,1745894310032,219.01,0.00033399,35]
[359288949,1745894310237,562.4,0.00038356,30]
[359288950,1745894311452,470.0,0.00038356,30]
[359288951,1745894312014,151.90316369,0.00032879,60]
[359288952,1745894312054,557.74,0.00038356,30]
[359288953,1745894312118,470.0,0.00038356,30]
[359288954,1745894313941,479.42,0.00038356,30]
[359288955,1745894314620,2950.86,0.00038356,30]
[359288956,1745894314693,470.0,0.00038356,30]
[359288957,1745894315557,470.0,0.00038356,30]
[359288958,1745894315932,547.44,0.00038356,30]
[359288959,1745894315976,470.0,0.00038356,30]
[359288960,1745894317436,470.0,0.00038356,30]
[359288961,1745894318522,470.0,0.00038356,30]
[359288962,1745894321405,470.0,0.00038356,30]
[359288963,1745894321552,11530.18,0.00038356,30]
[359288964,1745894322224,470.0,0.00038356,30]
[359288965,1745894322466,470.0,0.00038356,30]
[359288966,1745894322938,470.0,0.00038356,30]
[359288967,1745894323766,470.0,0.00038356,30]
[359288968,1745894323872,1128.31,0.00038356,30]
[359288969,1745894325304,470.0,0.00038356,30]
[359288970,1745894326327,470.0,0.00038356,30]
[359288971,1745894329524,470.0,0.00038356,30]
[359288972,1745894329681,1126.28,0.00038356,30]
[359288973,1745894329945,470.0,0.00038356,30]
[359288974,1745894330806,470.0,0.00038356,30]
[359288975,1745894331878,470.0,0.00038356,30]
[359288976,1745894333102,470.0,0.00038356,30]
[359288977,1745894333144,470.0,0.00038356,30]
[359288978,1745894334005,10138.03,0.00038356,30]
[359288979,1745894338238,470.0,0.00038356,30]
[359288980,1745894341420,470.0,0.00038356,30]
[359288981,1745894341963,495.0,0.00038356,30]
[359288982,1745894343700,470.0,0.00038356,30]
[359288983,1745894344893,470.0,0.00038356,30]
[359288984,1745894347833,470.0,0.00038356,30]
[359288985,1745894347975,649.6,0.00038356,30]
[359288986,1745894348055,470.0,0.00038356,30]
[359288987,1745894351541,470.0,0.00038356,30]
[359288988,1745894352336,1499.8,0.00038356,30]
[359288989,1745894352375,470.0,0.00038356,30]
[359288990,1745894355058,470.0,0.00038356,30]
[359288991,1745894357192,470.0,0.00038356,30]
[359288992,1745894357922,537.95,0.00038356,30]
[359288993,1745894359629,470.0,0.00038356,30]
[359288994,1745894360025,470.0,0.00038356,30]
[359288995,1745894360379,470.0,0.00038356,30]
[359288996,1745894361754,470.0,0.00038356,30]
[359288997,1745894362287,470.0,0.00038356,30]
[359288998,1745894364305,470.0,0.00038356,30]
[359288999,1745894365021,470.0,0.00038356,30]
[359289000,1745894366223,487.45089546,0.00038356,30]
[359289001,1745894366944,470.0,0.00038356,30]
[359289002,1745894368409,470.0,0.00038356,30]
[359289003,1745894369611,470.0,0.00038356,30]
[359289004,1745894370449,470.0,0.00038356,30]
[359289005,1745894371288,558.28,0.00038356,30]
[359289006,1745894373132,470.0,0.00038356,30]
[359289007,1745894374193,470.0,0.00038356,30]
[359289008,1745894374343,470.0,0.00038356,30]
[359289009,1745894375778,470.0,0.00038356,30]
[359289010,1745894378128,523.39563056,0.00038356,30]
[359289011,1745894378318,470.0,0.00038356,30]
[359289012,1745894379041,470.0,0.00038356,30]
[359289013,1745894379580,849.67,0.00038356,30]
[359289014,1745894379630,470.0,0.00038356,30]
[359289015,1745894379697,470.0,0.00038356,30]
[359289016,1745894380307,470.0,0.00038356,30]
[359289017,1745894380728,470.0,0.00038356,30]
[359289018,1745894382645,470.0,0.00038356,30]
[359289019,1745894386105,470.0,0.00038356,30]
[359289020,1745894387011,470.0,0.00038356,30]
[359289021,1745894387100,470.0,0.00038356,30]
[359289022,1745894387923,470.0,0.00038356,30]
[359289023,1745894388104,470.0,0.00038356,30]
[359289024,1745894390244,470.0,0.00038356,30]
[359289025,1745894392649,470.0,0.00038356,30]
[359289026,1745894393144,470.0,0.00038356,30]
[359289027,1745894396475,50667.0973515,0.000383,120]
[359289028,1745894396552,3021.54,0.00038356,30]
[359289029,1745894397874,470.0,0.00038356,30]
[359289030,1745894398910,470.0,0.00038356,30]
[359289031,1745894399378,470.0,0.00038356,30]
[359289032,1745894400910,470.0,0.00038356,30]
[359289033,1745894403183,470.0,0.00038356,30]
[359289034,1745894403313,510.18,0.00038356,30]
[359289035,1745894405084,773.82,0.00038356,30]
[359289036,1745894406684,470.0,0.00038356,30]
[359289037,1745894407462,470.0,0.00038356,30]
[359289038,1745894409672,1139.58,0.00038356,30]
[359289039,1745894411104,470.0,0.00038356,30]
[359289040,1745894411903,544.59,0.00038356,30]
[359289041,1745894412623,470.0,0.00038356,30]
[359289042,1745894412681,470.0,0.00038356,30]
[359289043,1745894413474,1399.67,0.00038356,30]
[359289044,1745894413721,690.76,0.00038356,30]
[359289045,1745894413835,709.12,0.00038356,30]
[359289046,1745894414121,470.0,0.00038356,30]
[359289047,1745894414500,470.0,0.00038356,30]
[359289048,1745894415814,470.0,0.00038356,30]
[359289049,1745894417710,470.0,0.00038356,30]
[359289050,1745894417769,470.0,0.00038356,30]
[359289051,1745894418696,167.19052025,0.00038356,30]
[359289052,1745894418869,470.0,0.00038356,30]
[359289053,1745894419067,1413.54,0.00038356,30]
[359289054,1745894420410,470.0,0.00038356,30]
[359289055,1745894420666,470.0,0.00038356,30]
[359289056,1745894421331,470.0,0.00038356,30]
[359289057,1745894422081,470.0,0.00038356,30]
[359289058,1745894422163,470.0,0.00038356,30]
[359289059,1745894423980,535.45,0.00038356,30]
[359289060,1745894424232,1238.04,0.00038356,30]
[359289061,1745894424446,470.0,0.00038356,30]
[359289062,1745894425248,470.0,0.00038356,30]
[359289063,1745894427243,470.0,0.00038356,30]
[359289064,1745894427756,974.46,0.00038356,30]
[359289065,1745894427930,470.0,0.00038356,30]
[359289066,1745894429070,470.0,0.00038356,30]
[359289067,1745894430276,862.85,0.00038356,30]
[359289068,1745894431929,470.0,0.00038356,30]
[359289069,1745894432464,470.0,0.00038356,30]
[359289070,1745894432848,470.0,0.00038356,30]
[359289071,1745894433735,470.0,0.00038356,30]
[359289072,1745894435386,470.0,0.00038356,30]
[359289073,1745894435561,470.0,0.00038356,30]
[359289074,1745894435717,470.0,0.00038356,30]
[359289075,1745894435839,470.0,0.00038356,30]
[359289076,1745894435877,470.0,0.00038356,30]
[359289077,1745894436307,544.84,0.00038356,30]
[359289078,1745894437910,470.0,0.00038356,30]
[359289079,1745894437947,512.34,0.00038356,30]
[359289080,1745894438603,470.0,0.00038356,30]
[359289081,1745894439424,470.0,0.00038356,30]
[359289082,1745894439477,470.0,0.00038356,30]
[359289083,1745894439535,470.0,0.00038356,30]
[359289084,1745894439782,470.0,0.00038356,30]
[359289085,1745894440369,470.0,0.00038356,30]
[359289086,1745894440438,520.62,0.00038356,30]
[359289087,1745894441068,797.71,0.00038356,30]
[359289088,1745894441234,470.0,0.00038356,30]
[359289089,1745894442574,537.47,0.00038356,30]
[359289090,1745894444598,470.0,0.00038356,30]
[359289091,1745894444643,470.0,0.00038356,30]
[359289092,1745894444785,506.9,0.00038356,30]
[359289093,1745894445092,470.0,0.00038356,30]
[359289094,1745894445611,470.0,0.00038356,30]
[359289095,1745894446230,470.0,0.00038356,30]
[359289096,1745894449047,547.66,0.00038356,30]
[359289097,1745894449858,235.5142534,0.000383,120]
[359289098,1745894450173,628.61,0.00038356,30]
[359289099,1745894450557,470.0,0.00038356,30]
[359289100,1745894451573,514.76,0.00038356,30]
[359289101,1745894451617,492.84,0.00038356,30]
[359289102,1745894452131,470.0,0.00038356,30]
[359289103,1745894454415,518.29,0.00038356,30]
[359289104,1745894454453,2321.94,0.00038356,30]
[359289105,1745894457214,470.0,0.00038356,30]
[359289106,1745894457439,470.0,0.00038356,30]
[359289107,1745894459199,470.0,0.00038356,30]
[359289108,1745894460497,470.0,0.00038356,30]
[359289109,1745894462036,470.0,0.00038356,30]
[359289110,1745894462443,699.39,0.00038356,30]
[359289111,1745894462493,624.45,0.00038356,30]
[359289112,1745894462531,470.0,0.00038356,30]
[359289113,1745894463276,503.22,0.00038356,30]
[359289114,1745894463839,470.0,0.00038356,30]
[359289115,1745894464285,1691.15,0.00038356,30]
[359289116,1745894464627,621.31,0.00038356,30]
[359289117,1745894464795,630.2,0.00038356,30]
[359289118,1745894465368,470.0,0.00038356,30]
[359289119,1745894467833,470.0,0.00038356,30]
[359289120,1745894470680,470.0,0.00038356,30]
[359289121,1745894470825,470.0,0.00038356,30]
[359289122,1745894471306,470.0,0.00038356,30]
[359289123,1745894472222,470.0,0.00038356,30]
[359289124,1745894472391,807.62,0.00038356,30]
[359289125,1745894472432,470.0,0.00038356,30]
[359289126,1745894472849,470.0,0.00038356,30]
[359289127,1745894473054,470.0,0.00038356,30]
[359289128,1745894473469,470.0,0.00038356,30]
[359289129,1745894473508,470.0,0.00038356,30]
[359289130,1745894474973,470.0,0.00038356,30]
[359289131,1745894475455,515.2,0.00038356,30]
[359289132,1745894475613,693.51,0.00038356,30]
[359289133,1745894476039,518.75,0.00038356,30]
[359289134,1745894477417,470.0,0.00038356,30]
[359289135,1745894477811,470.0,0.00038356,30]
[359289136,1745894479394,470.0,0.00038356,30]
[359289137,1745894479817,778.89,0.00038356,30]
[359289138,1745894480580,630.36,0.00038356,30]
[359289139,1745894481298,470.0,0.00038356,30]
[359289140,1745894481838,501.67,0.00038356,30]
[359289141,1745894482038,470.0,0.00038356,30]
[359289142,1745894483208,470.0,0.00038356,30]
[359289143,1745894485062,470.0,0.00038356,30]
[359289144,1745894485786,470.0,0.00038356,30]
[359289145,1745894486243,470.0,0.00038356,30]
[359289146,1745894486765,470.0,0.00038356,30]
[359289147,1745894487978,470.0,0.00038356,30]
[359289148,1745894488790,470.0,0.00038356,30]
[359289149,1745894489992,470.0,0.00038356,30]
[359289150,1745894490400,300.0,0.00038356,30]
[359289151,1745894490445,470.0,0.00038356,30]
[359289152,1745894491070,499.68,0.00038356,30]
[359289153,1745894492254,470.0,0.00038356,30]
[359289154,1745894493543,944.26,0.00038356,30]
[359289157,1745894494033,702.61,0.00038356,30]
[359289158,1745894494388,470.0,0.00038356,30]
[359289159,1745894496358,470.0,0.00038356,30]
[359289160,1745894497478,470.0,0.00038356,30]
[359289161,1745894497627,470.0,0.00038356,30]
[359289162,1745894497673,470.0,0.00038356,30]
[359289163,1745894498816,470.0,0.00038356,30]
[359289164,1745894499075,470.0,0.00038356,30]
[359289165,1745894499229,470.0,0.00038356,30]
[359289166,1745894499627,470.0,0.00038356,30]
[359289167,1745894499868,505.28,0.00038356,30]
[359289168,1745894501334,470.0,0.00038356,30]
[359289169,1745894501606,868.44,0.00038356,30]
[359289170,1745894503889,470.0,0.00038356,30]
[359289171,1745894504666,470.0,0.00038356,30]
[359289172,1745894504795,470.0,0.00038356,30]
[359289173,1745894505902,470.0,0.00038356,30]
[359289174,1745894506659,470.0,0.00038356,30]
[359289175,1745894508371,470.0,0.00038356,30]
[359289176,1745894508896,470.0,0.00038356,30]
[359289177,1745894510191,470.0,0.00038356,30]
[359289178,1745894510449,7037.89179133,0.00038356,30]
[359289179,1745894539623,151.9031637,0.00030442,60]
[359290030,1745894815261,150.0,0.00036986,60]
[359290125,1745895032066,-742.17,0.00027397,2]
[359290126,1745895032076,-277.50487851,0.00029382,2]
[359290128,1745895032140,-142.10081651,0.00029382,2]
[359290130,1745895032150,-187.89,0.00029857,2]
[359290132,1745895032159,-86.11537746,0.00030542,2]
[359290135,1745895032179,-107.88462254,0.00030542,2]
[359290137,1745895032194,-856.9,0.00030793,2]
[359290139,1745895032204,-1341.64638638,0.00032,2]
[359290141,1745895032219,-579.83504523,0.00032,2]
[359290143,1745895032231,-656.85849024,0.00032,2]
[359290145,1745895032242,-372.60150524,0.00032,2]
[359290148,1745895032264,-791.14462209,0.00032,2]
[359290512,1745895037819,-278.873,0.0003136,2]
[359290513,1745895037829,-221.127,0.00032,2]
[359290515,1745895037872,-6694.7703,0.00032,2]
[359290516,1745895037928,-8138.81568657,0.00032,2]
[359290517,1745895037953,-2426.03720375,0.00032,2]
[359290562,1745895040078,-516.98277289,0.00032,2]
[359290563,1745895040654,-1133.10294442,0.00032,2]
[359290877,1745895045809,-34123.07804319,0.00032,2]
[359290901,1745895046041,-1200.0,0.00032199,3]
[359290903,1745895046051,-400.0,0.00032199,3]
[359290905,1745895046060,-150.0,0.000322,2]
[359290907,1745895046070,-5568.0,0.000323,3]
[359290909,1745895046079,-150.0,0.00032326,7]
[359290911,1745895046089,-150.64,0.000324,2]
[359290913,1745895046099,-151.13,0.000324,2]
[359290915,1745895046109,-390.75069822,0.000325,2]
[359290917,1745895046118,-250.0,0.00032577,2]
[359290919,1745895046128,-191.84,0.0003259,2]
[359290921,1745895046138,-223.04,0.00032593,2]
[359290923,1745895046147,-2304.64,0.000326,2]
[359290925,1745895046157,-303.98,0.000326,2]
[359290927,1745895046166,-176.34,0.00032625,2]
[359290929,1745895046175,-1527.62,0.00032627,2]
[359290931,1745895046185,-363.08,0.0003263,2]
[359290932,1745895046201,-1852.42,0.00032642,2]
[359290934,1745895046212,-993.06,0.00032652,2]
[359290936,1745895046223,-499.99,0.00032652,2]
[359290939,1745895046234,-1128.65,0.00032652,2]
[359290940,1745895046246,-1527.43,0.00032652,2]
[359290942,1745895046257,-351.59,0.000327,2]
[359290944,1745895046267,-5568.0,0.000327,5]
[359290946,1745895046277,-1000.0,0.00032733,2]
[359290948,1745895046287,-150.0,0.00032733,2]